bitfinex/quotes_ETHUSD_20250925
["timestamp","ask_amount","ask_price","bid_price","bid_amount"]
[1758802401412,43.49529574,4023.2,4023.1,0.002]
[1758802402010,43.78925702,4023.2,4023.1,0.002]
[1758802403174,13.78925702,4023.2,4023.1,0.002]
[1758802403399,43.78925702,4023.2,4023.1,0.002]
[1758802404306,43.79025702,4023.2,4023.1,0.002]
[1758802404504,44.18021189,4023.2,4023.1,0.002]
[1758802405002,2.48576897,4022.9,4022.8,1e-08]
[1758802405204,41.74276897,4022.9,4022.8,1e-08]
[1758802405411,42.42746897,4022.9,4022.8,1e-08]
[1758802405704,42.52719037,4022.9,4022.8,1e-08]
[1758802406207,28.17223837,4022.9,4022.8,1e-08]
[1758802406420,37.31010452,4022.9,4022.8,1e-08]
[1758802407519,39.43492952,4022.9,4022.8,1e-08]
[1758802408439,25.83709952,4022.9,4022.8,1e-08]
[1758802408622,32.09409952,4022.9,4022.8,1e-08]
[1758802409310,36.82067452,4022.9,4022.8,1e-08]
[1758802410258,37.05527452,4022.9,4022.8,1e-08]
[1758802410438,41.48923552,4022.9,4022.8,1e-08]
[1758802410758,41.93933552,4022.9,4022.8,1e-08]
[1758802411256,41.48923552,4022.9,4022.8,1e-08]
[1758802411410,42.32897452,4022.9,4022.8,1e-08]
[1758802412342,14.46837652,4022.9,4022.8,1e-08]
[1758802412725,41.40650952,4022.9,4022.8,1e-08]
[1758802413044,41.74633452,4022.9,4022.8,1e-08]
[1758802413244,36.73878352,4022.9,4022.8,1e-08]
[1758802413442,37.13583152,4022.9,4022.8,1e-08]
[1758802413744,35.51980352,4022.9,4022.8,1e-08]
[1758802414244,26.05662452,4022.9,4022.8,1e-08]
[1758802414442,34.40867852,4022.9,4022.8,1e-08]
[1758802415329,34.40787852,4022.9,4022.8,1e-08]
[1758802415652,38.64918252,4022.9,4022.8,1e-08]
[1758802415848,38.23816052,4022.9,4022.8,1e-08]
[1758802416566,41.85414152,4022.9,4022.8,1e-08]
[1758802416755,42.08874152,4022.9,4022.8,1e-08]
[1758802417047,41.18423652,4022.9,4022.8,1e-08]
[1758802417145,40.94963652,4022.9,4022.8,1e-08]
[1758802417342,28.09911052,4022.9,4022.8,1e-08]
[1758802417541,32.78559052,4022.9,4022.8,0.67370001]
[1758802417852,33.02019052,4022.9,4022.8,1e-08]
[1758802418032,33.47029052,4022.9,4022.8,1e-08]
[1758802418428,15.04067652,4022.9,4022.8,1e-08]
[1758802418644,20.02109109,4022.9,4022.8,1e-08]
[1758802418974,50.02109109,4022.9,4022.8,1e-08]
[1758802422563,19.13628886,4022.9,4022.8,1e-08]
[1758802422790,18.45158886,4022.9,4022.8,1e-08]
[1758802423001,43.83732786,4022.9,4022.8,1e-08]
[1758802423155,43.42513086,4022.9,4022.8,1e-08]
[1758802423346,43.86843086,4022.9,4022.8,1e-08]
[1758802423686,49.12088886,4022.9,4022.8,1e-08]
[1758802424483,48.67858886,4022.9,4022.8,1e-08]
[1758802424665,18.67858886,4022.9,4022.8,1e-08]
[1758802424984,19.12188886,4022.9,4022.8,1e-08]
[1758802425161,49.12188886,4022.9,4022.8,1e-08]
[1758802425589,2.48600332,4022.6,4022.3,0.002]
[1758802425783,9.5816903,4022.4,4022.3,0.002]
[1758802425962,40.3736903,4022.4,4022.3,0.002]
[1758802426281,40.3736903,4022.4,4021.4,0.2371]
[1758802426282,2.48632521,4022.0,4021.4,0.2371]
[1758802426523,15.83693755,4022.0,4021.4,0.002]
[1758802426696,7.87761136,4022.0,4021.4,0.002]
[1758802426878,7.87761136,4022.0,4021.9,0.705]
[1758802426879,5.87635343,4022.0,4021.9,0.705]
[1758802427189,15.57395743,4022.0,4021.9,0.705]
[1758802427555,20.37514677,4022.0,4021.9,0.705]
[1758802427890,35.93578677,4022.0,4021.9,0.705]
[1758802428585,35.93578677,4022.0,4021.9,0.002]
[1758802428752,49.99312892,4022.0,4021.9,0.002]
[1758802428951,49.54982892,4022.0,4021.9,0.002]
[1758802429152,49.32382892,4022.0,4021.9,0.002]
[1758802429575,49.54982892,4022.0,4021.9,0.002]
[1758802429771,19.54982892,4022.0,4021.9,0.002]
[1758802430089,2.48663434,4021.5,4021.4,0.2371]
[1758802430295,2.48663434,4021.5,4021.4,0.002]
[1758802430296,14.26314288,4021.5,4021.4,0.002]
[1758802430497,2.48681985,4021.2,4021.1,0.02]
[1758802430800,15.83800919,4021.2,4021.1,0.02]
[1758802431000,45.83800919,4021.2,4021.1,0.02]
[1758802432758,15.83800919,4021.2,4021.1,0.02]
[1758802432964,18.06630356,4021.2,4021.1,0.02]
[1758802433277,48.06630356,4021.2,4021.1,0.02]
[1758802433664,48.29230356,4021.2,4021.1,0.02]
[1758802434094,45.99430356,4021.2,4021.1,0.02]
[1758802434395,48.06730356,4021.2,4021.1,0.02]
[1758802436305,32.48289058,4020.2,4020.1,15.223]
[1758802436478,36.57907992,4020.2,4020.1,14.52]
[1758802436674,34.96665292,4020.2,4020.1,14.7551]
[1758802436878,27.38724692,4020.2,4020.1,14.7551]
[1758802437100,22.63271692,4020.2,4020.1,15.223]
[1758802437278,22.43190192,4020.2,4020.1,15.223]
[1758802437478,16.31448338,4020.2,4020.1,15.223]
[1758802437984,10.44309689,4020.2,4020.1,15.223]
[1758802438378,6.54022546,4020.2,4020.1,15.223]
[1758802438599,13.21066389,4020.2,4020.1,15.223]
[1758802438913,15.99191689,4020.2,4020.1,15.223]
[1758802439275,15.51425489,4020.2,4020.1,15.223]
[1758802439779,11.33125489,4020.2,4020.1,15.223]
[1758802439998,9.79162789,4020.2,4020.1,15.223]
[1758802440314,11.94062789,4020.2,4020.1,0.723]
[1758802440780,11.94062789,4020.2,4020.1,15.223]
[1758802441107,11.93982789,4020.2,4020.1,15.223]
[1758802441911,28.20694423,4020.2,4020.1,15.223]
[1758802442096,28.20694423,4020.2,4020.1,15.225]
[1758802442408,30.27588338,4020.2,4020.1,14.522]
[1758802442616,30.27588338,4020.2,4020.1,15.1941]
[1758802442914,44.71209338,4020.2,4020.1,15.1941]
[1758802443090,12.09530338,4020.2,4020.1,15.1941]
[1758802443272,25.85177723,4020.2,4020.1,15.1941]
[1758802443904,32.05565823,4020.2,4020.1,15.1941]
[1758802444979,34.38089523,4020.2,4020.1,15.1941]
[1758802445195,34.38089523,4020.2,4020.1,14.7632]
[1758802445388,36.77218138,4020.2,4020.1,14.522]
[1758802445807,36.77218138,4020.2,4020.1,0.022]
[1758802446014,43.82116138,4020.2,4020.1,0.2632]
[1758802446214,43.61011238,4020.2,4020.1,14.7632]
[1758802446518,43.61011238,4020.2,4020.1,15.1941]
[1758802447011,29.79656138,4020.2,4020.1,15.1941]
[1758802447214,23.21672838,4020.2,4020.1,15.1941]
[1758802447399,21.11420438,4020.2,4020.1,15.1941]
[1758802447907,21.11420438,4020.2,4020.1,14.7632]
[1758802448210,30.49915638,4020.2,4020.1,14.522]
[1758802449116,30.49915638,4020.2,4020.1,0.022]
[1758802449117,43.09687238,4020.2,4020.1,0.022]
[1758802449301,43.34677238,4020.2,4020.1,0.022]
[1758802449506,43.09687238,4020.2,4020.1,0.022]
[1758802449701,43.84518774,4020.2,4020.1,0.022]
[1758802450225,23.14026974,4020.2,4020.1,0.022]
[1758802450426,15.97762323,4020.2,4020.1,0.022]
[1758802450611,16.72600765,4020.2,4020.1,0.022]
[1758802450982,33.97024265,4020.2,4020.1,0.022]
[1758802451182,32.52324765,4020.2,4020.1,0.022]
[1758802451987,35.51897365,4020.2,4020.1,0.022]
[1758802452179,26.5658868,4020.2,4020.1,0.022]
[1758802452385,25.8353128,4020.2,4020.1,0.022]
[1758802453226,37.3327788,4020.2,4020.1,0.022]
[1758802453929,37.5705788,4020.2,4020.1,0.022]
[1758802454130,39.1698258,4020.2,4020.1,14.522]
[1758802454510,39.56003587,4020.2,4020.1,14.522]
[1758802455129,41.34929887,4020.2,4020.1,14.522]
[1758802456032,40.85254787,4020.2,4020.1,14.522]
[1758802456229,42.05647887,4020.2,4020.1,14.522]
[1758802456548,41.14471787,4020.2,4020.1,14.522]
[1758802457235,41.70943487,4020.2,4020.1,0.022]
[1758802458234,41.70964987,4020.2,4020.1,0.022]
[1758802459248,41.82320587,4020.2,4020.1,0.022]
[1758802460239,41.82320587,4020.2,4019.8,14.5]
[1758802460240,2.48762407,4019.9,4019.8,14.5]
[1758802460442,2.48762407,4019.9,4019.6,0.002]
[1758802460443,2.48774784,4019.7,4019.6,0.002]
[1758802460615,39.66974784,4019.7,4019.6,0.002]
[1758802461016,40.73119134,4019.7,4019.6,0.002]
[1758802461357,40.34094784,4019.7,4019.6,0.002]
[1758802461558,12.73223399,4019.7,4019.6,0.002]
[1758802461760,42.73223399,4019.7,4019.6,0.002]
[1758802462913,41.60759899,4019.7,4019.6,0.002]
[1758802463234,33.75933199,4019.7,4019.6,0.002]
[1758802463431,37.85552133,4019.7,4019.6,0.002]
[1758802463637,45.11163933,4019.7,4019.6,0.002]
[1758802464168,44.43763933,4019.7,4019.6,0.002]
[1758802464378,34.2417629,4019.7,4019.6,0.002]
[1758802464564,34.8345359,4019.7,4019.6,0.002]
[1758802464765,25.0046979,4019.7,4019.6,0.002]
[1758802465074,25.0046979,4019.7,4019.6,0.2352]
[1758802465559,17.2186799,4019.7,4019.6,0.2352]
[1758802465763,23.0212349,4019.7,4019.6,0.2352]
[1758802466276,23.0204349,4019.7,4019.6,0.2352]
[1758802466463,17.74166156,4019.7,4019.6,0.6712]
[1758802466646,33.7271729,4019.7,4019.6,0.6712]
[1758802467076,31.2690259,4019.7,4019.6,0.6712]
[1758802467572,25.0130259,4019.7,4019.6,0.6712]
[1758802467773,34.8766279,4019.7,4019.6,0.6712]
[1758802468141,32.1256859,4019.7,4019.6,0.6712]
[1758802468341,30.3510949,4019.7,4019.6,0.6712]
[1758802468579,27.86414706,4019.7,4019.6,0.6712]
[1758802468774,34.3798569,4019.7,4019.6,0.6712]
[1758802468978,30.5636929,4019.7,4019.6,0.6712]
[1758802469353,37.7336929,4019.7,4019.6,0.6712]
[1758802469550,37.5288119,4019.7,4019.6,0.6712]
[1758802469750,29.4842469,4019.7,4019.6,0.6712]
[1758802469973,34.9465789,4019.7,4019.6,0.6712]
[1758802470162,34.9465789,4019.7,4019.6,15.1712]
[1758802470360,13.71920441,4019.7,4019.6,15.1712]
[1758802470567,19.87721141,4019.7,4019.6,15.1712]
[1758802470768,25.66078241,4019.7,4019.6,15.1712]
[1758802470963,29.75697175,4019.7,4019.6,14.502]
[1758802471152,29.75697175,4019.7,4019.6,15.1712]
[1758802471373,29.36671518,4019.7,4019.6,15.1712]
[1758802471789,32.28913818,4019.7,4019.6,15.1712]
[1758802471996,28.10363018,4019.7,4019.6,15.1712]
[1758802472469,23.92263018,4019.7,4019.6,15.1712]
[1758802472671,28.10363018,4019.7,4019.6,15.1712]
[1758802472865,36.97624818,4019.7,4019.6,15.1712]
[1758802473065,35.97624818,4019.7,4019.6,15.1712]
[1758802473371,32.97624818,4019.7,4019.6,0.6712]
[1758802473694,35.97624818,4019.7,4019.6,15.1712]
[1758802473882,36.97919818,4019.7,4019.6,15.1712]
[1758802474083,36.97919818,4019.7,4019.6,14.502]
[1758802474272,39.37048433,4019.7,4019.6,14.7352]
[1758802474469,39.37048433,4019.7,4019.6,14.502]
[1758802474789,23.71646251,4019.7,4019.6,14.502]
[1758802475087,24.46488427,4019.7,4019.6,0.002]
[1758802475292,54.46488427,4019.7,4019.6,0.002]
[1758802476086,53.51737827,4019.7,4019.6,0.002]
[1758802476668,53.75517827,4019.7,4019.6,0.002]
[1758802477075,55.13888427,4019.7,4019.6,0.002]
[1758802477596,54.70268427,4019.7,4019.6,0.002]
[1758802478167,54.46488427,4019.7,4019.6,0.002]
[1758802479078,24.46488427,4019.7,4019.6,0.002]
[1758802479389,54.46488427,4019.7,4019.6,0.002]
[1758802480370,54.70268427,4019.7,4019.6,0.002]
[1758802480571,5.48799542,4019.3,4019.2,14.502]
[1758802480787,31.55221476,4019.3,4019.2,14.502]
[1758802481099,31.55221476,4019.3,4019.2,14.7452]
[1758802481288,32.30040935,4019.3,4019.2,15.2109]
[1758802481667,31.80009435,4019.3,4019.2,15.2109]
[1758802481869,32.29181935,4019.3,4019.2,15.2109]
[1758802482766,39.45981935,4019.3,4019.2,15.2109]
[1758802482993,40.14505435,4019.3,4019.2,15.2109]
[1758802484102,39.95800235,4019.3,4019.2,15.2109]
[1758802484490,19.74056601,4019.3,4019.2,15.2109]
[1758802484686,16.38008701,4019.3,4019.2,15.2109]
[1758802484889,14.348,4019.3,4019.2,15.2109]
[1758802485398,10.168,4019.3,4019.2,15.2109]
[1758802485572,14.348,4019.3,4019.2,15.2109]
[1758802487385,10.168,4019.3,4019.2,15.2109]
[1758802487984,10.168,4019.3,4019.2,14.7452]
[1758802488208,33.43513481,4019.3,4019.2,15.2109]
[1758802488410,15.70940942,4019.3,4019.2,15.2109]
[1758802488619,14.348,4019.3,4019.2,15.2109]
[1758802488992,16.83599542,4019.3,4019.2,15.2109]
[1758802489208,19.25234842,4019.3,4019.2,15.2109]
[1758802489412,19.10234842,4019.3,4019.2,15.2109]
[1758802490049,19.10234842,4019.3,4019.2,14.502]
[1758802490346,19.10234842,4019.3,4019.2,15.2109]
[1758802491134,19.10234842,4019.3,4019.2,14.502]
[1758802491433,16.614353,4019.3,4019.2,14.502]
[1758802491602,16.68519542,4019.3,4019.2,15.2109]
[1758802491935,10.0172,4019.3,4019.2,15.2109]
[1758802492138,14.1962,4019.3,4019.2,15.2109]
[1758802494006,14.94458629,4019.3,4019.2,15.2109]
[1758802494250,10.76558629,4019.3,4019.2,15.2109]
[1758802494453,0.74838629,4019.3,4019.2,17.69895732]
[1758802494606,0.74838629,4019.3,4019.2,15.2109]
[1758802495107,0.74838629,4019.3,4019.2,17.69895732]
[1758802495542,3.0,4019.6,4019.2,17.69895732]
[1758802495741,3.74828549,4019.6,4019.5,2.48787162]
[1758802495958,3.74828549,4019.6,4019.5,2.51275033]
[1758802496123,3.74828549,4019.6,4019.5,3.22165033]
[1758802496452,7.168,4020.1,4019.5,21.90065033]
[1758802496751,0.001,4019.6,4019.5,21.16687162]
[1758802496904,0.001,4019.6,4019.5,18.679]
[1758802497247,0.001,4019.6,4019.5,19.3879]
[1758802498177,0.001,4019.6,4019.5,19.5119]
[1758802498959,0.001,4019.6,4019.5,21.99977162]
[1758802499465,0.001,4019.6,4019.5,15.3329]
[1758802501268,0.001,4019.6,4019.5,14.624]
[1758802501454,41.13243828,4019.6,4019.5,14.624]
[1758802501818,2.48799542,4019.3,4019.2,0.126]
[1758802501937,24.72046659,4019.3,4019.2,0.002]
[1758802502136,40.03868659,4019.3,4019.2,0.002]
[1758802502352,40.71958659,4019.3,4019.2,14.502]
[1758802502673,30.78871715,4019.3,4019.2,14.502]
[1758802502848,14.346,4019.3,4019.2,15.2023]
[1758802503061,10.91639749,4019.3,4019.2,15.3263]
[1758802503449,10.91639749,4019.3,4019.2,17.81435732]
[1758802503667,10.91639749,4019.3,4019.2,21.99235732]
[1758802503842,10.91639749,4019.3,4019.2,19.5043]
[1758802504047,10.91639749,4019.3,4019.2,21.99235732]
[1758802504780,10.91639749,4019.3,4019.2,19.5043]
[1758802504947,10.91639749,4019.3,4019.2,21.99235732]
[1758802505452,10.91639749,4019.3,4019.2,18.804]
[1758802505858,10.91639749,4019.3,4019.2,14.626]
[1758802506053,31.04465891,4019.3,4019.2,14.626]
[1758802506252,14.05460449,4019.3,4019.2,14.626]
[1758802506448,16.78039991,4019.3,4019.2,14.626]
[1758802506771,13.40439291,4019.3,4019.2,14.626]
[1758802506953,10.91639749,4019.3,4019.2,14.626]
[1758802507781,10.91639749,4019.3,4019.2,14.502]
[1758802507782,25.94466791,4019.3,4019.2,14.502]
[1758802507949,28.72620226,4019.3,4019.2,14.502]
[1758802508558,16.86682726,4019.3,4019.2,14.502]
[1758802508763,16.86682726,4019.3,4019.2,0.002]
[1758802508764,38.35920526,4019.3,4019.2,0.002]
[1758802508964,40.43220526,4019.3,4019.2,0.002]
[1758802509173,12.65405732,4019.2,4019.1,0.022]
[1758802509464,2.48818113,4019.0,4018.9,0.002]
[1758802509668,2.48818113,4019.0,4018.7,0.002]
[1758802509669,5.48830496,4018.8,4018.7,0.002]
[1758802509888,36.07490796,4018.8,4018.7,0.002]
[1758802510206,28.73502496,4018.8,4018.7,0.002]
[1758802510369,29.12536797,4018.8,4018.7,0.002]
[1758802510569,31.51665412,4018.8,4018.7,0.002]
[1758802510893,43.12783412,4018.8,4018.7,0.002]
[1758802511067,42.78940012,4018.8,4018.7,0.002]
[1758802511270,39.65100812,4018.8,4018.7,0.002]
[1758802511497,38.48910212,4018.8,4018.7,0.002]
[1758802511795,43.12783412,4018.8,4018.7,0.002]
[1758802513773,2.48849073,4018.5,4018.4,0.002]
[1758802513973,34.8305679,4018.5,4018.4,0.002]
[1758802514173,40.3832629,4018.5,4018.4,0.002]
[1758802514373,40.91868808,4018.5,4018.4,0.002]
[1758802514595,37.45091908,4018.5,4018.4,0.002]
[1758802514790,42.59060523,4018.5,4018.4,0.002]
[1758802515102,44.28978323,4018.5,4018.4,0.002]
[1758802515410,43.93684123,4018.5,4018.4,0.002]
[1758802515793,43.50124123,4018.5,4018.4,0.002]
[1758802516002,56.63033023,4018.5,4018.4,0.002]
[1758802516228,3.124,4018.4,4018.2,0.002]
[1758802516386,16.83261458,4018.3,4018.2,0.002]
[1758802516705,45.65394058,4018.3,4018.2,0.002]
[1758802516907,17.89743079,4018.3,4018.2,0.002]
[1758802517114,47.89663079,4018.3,4018.2,0.002]
[1758802517410,32.91820794,4018.3,4018.2,0.002]
[1758802517797,33.15700794,4018.3,4018.2,0.002]
[1758802517993,44.64863694,4018.3,4018.2,0.002]
[1758802518210,43.08990194,4018.3,4018.2,0.002]
[1758802518511,38.7149916,4018.3,4018.2,0.002]
[1758802518716,37.9742296,4018.3,4018.2,0.002]
[1758802519090,38.1497876,4018.3,4018.2,0.002]
[1758802519287,38.5853876,4018.3,4018.2,0.002]
[1758802519499,35.2019406,4018.3,4018.2,0.002]
[1758802519879,35.8763406,4018.3,4018.2,0.002]
[1758802520080,50.9944546,4018.3,4018.2,0.002]
[1758802520498,49.9034906,4018.3,4018.2,0.002]
[1758802520710,34.5245016,4018.3,4018.2,0.002]
[1758802521115,36.6113426,4018.3,4018.2,0.002]
[1758802521908,36.8081426,4018.3,4018.2,0.002]
[1758802522119,34.6107346,4018.3,4018.2,0.002]
[1758802522754,21.24449802,4018.3,4018.2,0.002]
[1758802522895,7.65624887,4018.3,4018.2,0.6764]
[1758802523097,0.001,4019.3,4018.2,3.16507652]
[1758802523098,9.24,4019.2,4018.2,3.16507652]
[1758802523296,12.850266,4019.1,4018.3,0.69928614]
[1758802523513,3.6764,4018.7,4018.4,0.2338]
[1758802523742,3.0,4018.5,4018.4,0.2338]
[1758802523953,0.6764,4018.7,4018.4,0.2338]
[1758802524259,7.178,4018.6,4018.5,0.4406]
[1758802524595,4.178,4018.6,4018.5,0.6744]
[1758802524833,9.6664288,4018.6,4018.5,0.6744]
[1758802525051,3.0,4018.5,4018.2,0.002]
[1758802525252,5.48861458,4018.3,4018.2,0.002]
[1758802525415,25.79269658,4018.3,4018.2,0.002]
[1758802525598,41.78635714,4018.3,4018.2,0.002]
[1758802525951,42.02215714,4018.3,4018.2,0.002]
[1758802526094,44.09615714,4018.3,4018.2,0.002]
[1758802526299,44.33495714,4018.3,4018.2,0.002]
[1758802526610,44.77055714,4018.3,4018.2,0.002]
[1758802527397,51.93655714,4018.3,4018.2,0.002]
[1758802527633,5.48873845,4018.1,4018.0,0.002]
[1758802527832,54.21795277,4018.1,4018.0,0.002]
[1758802528020,54.89235277,4018.1,4018.0,0.002]
[1758802528334,55.28276661,4018.1,4018.0,0.002]
[1758802529130,25.28276661,4018.1,4018.0,0.002]
[1758802529431,54.60836661,4018.1,4018.0,0.002]
[1758802529742,55.28276661,4018.1,4018.0,0.002]
[1758802530601,50.28883844,4018.1,4018.0,0.002]
[1758802531753,2.48886234,4017.9,4017.8,1e-08]
[1758802531901,42.05814849,4017.9,4017.8,1e-08]
[1758802532097,42.73254849,4017.9,4017.8,1e-08]
[1758802532914,43.52454849,4017.9,4017.8,1e-08]
[1758802533118,43.81850977,4017.9,4017.8,1e-08]
[1758802533515,36.26101849,4017.9,4017.8,1e-08]
[1758802533725,42.51301849,4017.9,4017.8,1e-08]
[1758802534128,42.94861849,4017.9,4017.8,1e-08]
[1758802534339,45.59854849,4017.9,4017.8,1e-08]
[1758802535155,38.27059397,4017.9,4017.8,1e-08]
[1758802535335,19.49031897,4017.9,4017.8,0.23380001]
[1758802535640,25.74231897,4017.9,4017.8,1e-08]
[1758802536144,34.66868025,4017.9,4017.8,1e-08]
[1758802536336,51.37495525,4017.9,4017.8,1e-08]
[1758802536511,53.01435525,4017.9,4017.8,1e-08]
[1758802536708,46.76135525,4017.9,4017.8,1e-08]
[1758802536960,53.01435525,4017.9,4017.8,1e-08]
[1758802537310,45.96935525,4017.9,4017.8,1e-08]
[1758802537616,52.95419397,4017.9,4017.8,1e-08]
[1758802537836,52.71539397,4017.9,4017.8,1e-08]
[1758802538714,45.58289597,4017.9,4017.8,1e-08]
[1758802539362,21.92339397,4017.9,4017.8,1e-08]
[1758802539810,51.92339397,4017.9,4017.8,1e-08]
[1758802540947,45.67039397,4017.9,4017.8,1e-08]
[1758802541132,51.92339397,4017.9,4017.8,1e-08]
[1758802542004,52.15059397,4017.9,4017.8,1e-08]
[1758802542404,52.61729397,4017.9,4017.8,1e-08]
[1758802542632,52.61649397,4017.9,4017.8,1e-08]
[1758802543440,53.70245525,4017.9,4017.8,1e-08]
[1758802544453,23.70245525,4017.9,4017.8,1e-08]
[1758802544839,53.70245525,4017.9,4017.8,1e-08]
[1758802545423,23.70245525,4017.9,4017.8,1e-08]
[1758802545859,53.70245525,4017.9,4017.8,1e-08]
[1758802546259,53.00855525,4017.9,4017.8,1e-08]
[1758802546574,53.00855525,4017.9,4017.1,0.022]
[1758802546575,2.48929602,4017.2,4017.1,0.022]
[1758802546743,25.56193901,4017.2,4017.1,0.022]
[1758802547270,24.83356507,4017.2,4017.1,0.4749]
[1758802547567,7.42034105,4017.2,4017.1,0.4749]
[1758802547857,7.02985433,4017.2,4017.1,0.4749]
[1758802548157,41.30516535,4017.2,4017.1,0.4749]
[1758802548324,36.03190435,4017.2,4017.1,0.4749]
[1758802548522,36.03190435,4017.2,4017.1,0.7109]
[1758802549266,31.33766535,4017.2,4017.1,15.2109]
[1758802549434,27.23215535,4017.2,4017.1,14.522]
[1758802549754,27.23215535,4017.2,4017.1,15.2109]
[1758802549755,29.02203535,4017.2,4017.1,15.2109]
[1758802549942,12.36032233,4017.2,4017.1,15.2109]
[1758802550262,19.02761835,4017.2,4017.1,15.2109]
[1758802550460,10.02985433,4017.2,4017.1,15.2109]
[1758802550634,14.20785433,4017.2,4017.1,15.2109]
[1758802551242,14.10799999,4017.2,4017.1,15.2109]
[1758802552254,9.92999999,4017.2,4017.1,15.2109]
[1758802552456,14.10799999,4017.2,4017.1,15.2109]
[1758802553564,9.92999999,4017.2,4017.1,15.2109]
[1758802553940,6.92999999,4017.2,4017.1,17.70025799]
[1758802556237,6.92999999,4017.2,4017.1,15.2109]
[1758802556566,6.92999999,4017.2,4017.1,17.82425799]
[1758802558566,6.92999999,4017.2,4017.1,22.00425799]
[1758802558772,6.92999999,4017.2,4017.1,17.82425799]
[1758802558972,6.92999999,4017.2,4017.1,22.00425799]
[1758802560691,6.92999999,4017.2,4017.1,14.646]
[1758802560986,6.92999999,4017.2,4017.1,15.3349]
[1758802562953,6.92999999,4017.2,4017.1,14.646]
[1758802563163,6.92999999,4017.2,4017.1,15.3395]
[1758802563659,6.92999999,4017.2,4017.1,14.646]
[1758802563979,13.77147537,4017.2,4017.1,14.646]
[1758802564186,42.02889137,4017.2,4017.1,14.646]
[1758802564587,45.02889137,4017.2,4017.1,14.646]
[1758802564756,43.91966973,4017.2,4017.1,14.646]
[1758802565196,41.96950573,4017.2,4017.1,14.646]
[1758802565397,48.51616173,4017.2,4017.1,14.522]
[1758802565699,40.66126573,4017.2,4017.1,14.522]
[1758802566406,46.15089573,4017.2,4017.1,14.522]
[1758802566606,46.15089573,4017.2,4017.1,0.022]
[1758802567108,46.54140223,4017.2,4017.1,0.022]
[1758802567393,48.90666823,4017.2,4017.1,0.022]
[1758802567986,28.87548523,4017.2,4017.1,0.022]
[1758802568165,30.95048523,4017.2,4017.1,0.022]
[1758802568364,35.60729923,4017.2,4017.1,0.022]
[1758802569100,31.15756923,4017.2,4017.1,0.022]
[1758802569469,48.16110323,4017.2,4017.1,0.022]
[1758802570277,44.65917023,4017.2,4017.1,0.022]
[1758802570491,45.42468923,4017.2,4017.1,0.022]
[1758802570707,40.46387523,4017.2,4017.1,0.022]
[1758802570895,39.07694623,4017.2,4017.1,0.022]
[1758802571101,32.90786523,4017.2,4017.1,0.022]
[1758802571399,33.37446523,4017.2,4017.1,0.022]
[1758802571563,55.17026823,4017.2,4017.1,0.022]
[1758802571964,51.14890223,4017.2,4017.1,0.022]
[1758802572491,52.11943723,4017.2,4017.1,0.022]
[1758802572698,36.91455423,4017.2,4017.1,0.022]
[1758802573217,21.35275323,4017.2,4017.1,0.022]
[1758802573373,27.17523323,4017.2,4017.1,0.022]
[1758802573575,28.09707373,4017.2,4017.1,0.022]
[1758802574001,22.77567537,4017.2,4017.1,0.022]
[1758802574170,26.34407637,4017.2,4017.1,0.022]
[1758802574364,24.26907637,4017.2,4017.1,0.022]
[1758802574586,41.35761537,4017.2,4017.1,0.022]
[1758802575595,42.80626237,4017.2,4017.1,0.022]
[1758802575791,41.01954852,4017.2,4017.1,0.022]
[1758802575992,46.11858552,4017.2,4017.1,0.022]
[1758802576299,46.58518552,4017.2,4017.1,0.022]
[1758802576494,25.85946152,4017.2,4017.1,0.022]
[1758802576684,53.98786388,4017.2,4017.1,0.022]
[1758802576860,47.76620252,4017.2,4017.1,0.022]
[1758802577592,55.85946152,4017.2,4017.1,0.022]
[1758802577787,54.37169152,4017.2,4017.1,0.022]
[1758802578409,53.90509152,4017.2,4017.1,0.022]
[1758802578612,55.85946152,4017.2,4017.1,0.022]
[1758802578921,59.96364088,4017.2,4017.1,0.022]
[1758802579087,55.85946152,4017.2,4017.1,0.022]
[1758802579289,2.48941996,4017.0,4016.9,0.002]
[1758802579623,2.48941996,4017.0,4016.6,0.002]
[1758802579624,5.48954391,4016.8,4016.6,0.002]
[1758802579787,2.48979185,4016.4,4016.2,0.002]
[1758802579987,43.22181821,4016.4,4016.2,0.002]
[1758802580224,38.15536421,4016.4,4016.2,0.002]
[1758802580386,44.6159642,4016.4,4016.2,0.002]
[1758802580597,3.0,4016.3,4013.6,2.49151759]
[1758802580900,9.59471532,4015.2,4014.9,0.555]
[1758802581099,13.77471532,4015.2,4014.9,0.126]
[1758802581413,43.77471532,4015.2,4014.9,0.002]
[1758802582728,41.99417732,4015.2,4014.9,0.002]
[1758802582893,46.39150149,4015.2,4014.9,0.002]
[1758802583392,45.49016649,4015.2,4014.9,0.002]
[1758802584007,46.39150149,4015.2,4014.9,0.002]
[1758802584413,46.78216824,4015.2,4014.9,0.002]
[1758802584619,42.57582924,4015.2,4014.9,0.002]
[1758802584822,3.39066675,4015.2,4015.1,0.6966]
[1758802585039,3.39066675,4015.2,4015.1,0.02]
[1758802585236,7.57066675,4015.2,4015.1,0.6966]
[1758802585413,3.39066675,4015.2,4015.1,0.6966]
[1758802585736,0.39066675,4015.2,4015.1,0.8206]
[1758802585939,0.39066675,4015.2,4015.1,0.84550597]
[1758802586311,0.39066675,4015.2,4015.1,0.8206]
[1758802587244,4.185,4015.3,4015.1,0.144]
[1758802587427,4.185,4015.3,4015.2,0.6766]
[1758802591631,0.39061618,4015.5,4015.2,0.6766]
[1758802591839,4.183,4016.0,4015.5,2.49030634]
[1758802592049,4.183,4016.1,4015.6,0.70150287]
[1758802592249,2.48981736,4016.4,4016.0,0.124]
[1758802592452,11.11219999,4016.3,4016.1,0.6766]
[1758802592653,3.0,4016.4,4016.2,0.6766]
[1758802592856,4.185,4016.5,4016.3,0.2476]